bitfinex/quotes_SOLUSD_20250508
["timestamp","ask_amount","ask_price","bid_price","bid_amount"]
[1746693481451,17.85175141,152.89,152.85,11.31096538]
[1746693481963,6.53893938,152.93,152.88,26.0]
[1746693482162,6.53893938,152.93,152.88,53.17096538]
[1746693482352,11.31096538,152.9,152.88,15.86]
[1746693482668,12.88286538,152.89,152.84,15.86]
[1746693482847,11.31096538,152.88,152.84,15.86]
[1746693483050,4.89857081,152.87,152.84,15.86]
[1746693483269,11.31096538,152.86,152.81,35.3300639]
[1746693483446,6.54236179,152.85,152.81,62.50102928]
[1746693484082,6.54236179,152.85,152.82,11.31096538]
[1746693484447,4.89857081,152.84,152.81,36.50102928]
[1746693484682,4.89857081,152.84,152.81,15.86]
[1746693485364,4.89857081,152.83,152.81,15.86]
[1746693486260,17.85332717,152.85,152.81,15.86]
[1746693486656,6.54107796,152.88,152.84,11.31096538]
[1746693486875,11.31096538,152.88,152.82,18.64964886]
[1746693487056,11.31096538,152.87,152.83,11.31096538]
[1746693487257,11.31096538,152.87,152.82,29.96061424]
[1746693487557,4.89648471,152.86,152.83,11.31096538]
[1746693487881,4.89648471,152.86,152.82,29.96061424]
[1746693488679,4.89648471,152.85,152.82,36.50423958]
[1746693489169,4.89648471,152.85,152.83,11.31096538]
[1746693489573,11.31096538,152.88,152.83,11.31096538]
[1746693490073,11.31096538,152.88,152.83,17.85400062]
[1746693490662,4.89490853,152.87,152.84,11.31096538]
[1746693491369,4.89490853,152.86,152.84,11.31096538]
[1746693492382,19.42356654,152.89,152.84,11.31096538]
[1746693493385,8.11260116,152.89,152.84,11.31096538]
[1746693493585,4.89228844,152.88,152.84,11.31096538]
[1746693493885,4.89228844,152.88,152.83,6.54308455]
[1746693494081,4.89228844,152.88,152.84,11.31096538]
[1746693494882,4.89228844,152.87,152.85,29.96061424]
[1746693495092,4.89228844,152.87,152.86,11.31096538]
[1746693496676,4.89228844,152.87,152.85,29.96061424]
[1746693496867,17.85120367,152.9,152.85,29.96061424]
[1746693497067,17.85120367,152.9,152.86,15.86]
[1746693497589,11.31096538,152.89,152.86,15.86]
[1746693498090,4.88957904,152.88,152.86,15.86]
[1746693498287,4.88957904,152.88,152.86,27.17096538]
[1746693499093,4.88957904,152.87,152.86,27.17096538]
[1746693499896,4.88957904,152.87,152.86,52.36254803]
[1746693500790,4.88957904,152.87,152.86,45.82061424]
[1746693501176,17.8514667,152.9,152.86,15.86]
[1746693502291,6.54050132,152.9,152.86,15.86]
[1746693502500,6.54050132,152.9,152.86,27.17096538]
[1746693502694,4.88694159,152.89,152.86,27.17096538]
[1746693502882,4.88694159,152.89,152.87,11.31096538]
[1746693503904,6.53979465,152.91,152.87,11.31096538]
[1746693504494,17.85076003,152.91,152.86,45.82061424]
[1746693505009,4.88565945,152.9,152.86,45.82061424]
[1746693505505,6.54065014,152.89,152.86,45.82061424]
[1746693508201,17.85118774,152.9,152.86,27.17096538]
[1746693508505,11.31096538,152.89,152.86,15.86]
[1746693508675,11.31096538,152.88,152.86,15.86]
[1746693508881,16.19608591,152.88,152.86,15.86]
[1746693509502,4.88512053,152.87,152.86,15.86]
[1746693510813,11.42662638,152.87,152.86,15.86]
[1746693513623,22.73759176,152.87,152.82,110.01096538]
[1746693513813,22.73759176,152.87,152.83,26.0]
[1746693514019,11.31096538,152.86,152.82,110.01096538]
[1746693514224,11.31096538,152.84,152.82,15.9]
[1746693514593,11.31096538,152.85,152.82,15.9]
[1746693514943,11.42791037,152.84,152.82,15.9]
[1746693515751,6.54278984,152.84,152.82,15.9]
[1746693518142,17.85349416,152.85,152.82,15.9]
[1746693518514,11.31096538,152.84,152.82,15.9]
[1746693519545,4.89147413,152.83,152.82,15.9]
[1746693519721,11.43469208,152.83,152.82,15.9]
[1746693521451,22.74565746,152.83,152.82,15.9]
[1746693521606,11.43469208,152.83,152.82,15.9]
[1746693523234,6.54321795,152.83,152.82,15.9]
[1746693524118,11.31096538,152.84,152.82,15.9]
[1746693525015,4.89218707,152.83,152.82,15.9]
[1746693525215,11.43540502,152.83,152.82,15.9]
[1746693527942,4.89218707,152.83,152.82,15.9]
[1746693530316,17.85391604,152.84,152.82,15.9]
[1746693531720,13.78098176,152.84,152.82,15.9]
[1746693534256,6.54295066,152.84,152.82,15.9]
[1746693538040,6.54295066,152.84,152.81,7.2380311]
[1746693539639,16.35376463,152.87,152.81,7.2380311]
[1746693539825,7.2380311,152.85,152.81,7.2380311]
[1746693540342,7.2380311,152.84,152.8,41.86]
[1746693540533,4.88921863,152.83,152.8,49.0980311]
[1746693541249,4.88921863,152.83,152.81,7.2380311]
[1746693541620,7.2380311,152.85,152.81,7.2380311]
[1746693542850,11.43215302,152.84,152.81,7.2380311]
[1746693544145,4.88936318,152.83,152.81,7.2380311]
[1746693544958,11.43262559,152.83,152.8,49.0980311]
[1746693545136,6.54326241,152.83,152.8,49.0980311]
[1746693546652,6.54193379,152.86,152.81,7.2380311]
[1746693547148,13.77996489,152.86,152.81,7.2380311]
[1746693547346,4.89039177,152.85,152.81,7.2380311]
[1746693547735,6.54278984,152.84,152.81,7.2380311]
[1746693547939,11.43290836,152.85,152.83,7.2380311]
[1746693548333,11.43290836,152.85,152.82,7.2380311]
[1746693548678,13.77910906,152.88,152.83,7.2380311]
[1746693552264,7.2380311,152.87,152.83,7.2380311]
[1746693552935,6.54107796,152.88,152.83,7.2380311]
[1746693553155,7.2380311,152.87,152.83,7.2380311]
[1746693554362,6.54193379,152.86,152.83,7.2380311]
[1746693555560,6.54107796,152.88,152.83,7.2380311]
[1746693555854,7.2380311,152.87,152.83,7.2380311]
[1746693556665,6.54193379,152.86,152.83,7.2380311]
[1746693561555,6.54107796,152.88,152.83,7.2380311]
[1746693561960,13.77910906,152.88,152.83,7.2380311]
[1746693563706,58.69655631,152.93,152.86,7.2380311]
[1746693563707,17.89219422,152.93,152.86,7.2380311]
[1746693563971,1.5438,152.93,152.88,7.2380311]
[1746693564140,6.53936698,152.92,152.89,7.2380311]
[1746693564947,6.53936698,152.92,152.88,7.2380311]
[1746693567369,13.77739808,152.92,152.87,49.0780311]
[1746693570159,6.53936698,152.92,152.88,7.2380311]
[1746693570475,6.5376569,152.96,152.91,7.2380311]
[1746693570646,13.775688,152.96,152.91,7.2380311]
[1746693570845,7.2380311,152.95,152.91,7.2380311]
[1746693571149,6.5376569,152.96,152.87,201.46355867]
[1746693571349,13.775688,152.96,152.91,7.2380311]
[1746693571954,6.5376569,152.96,152.91,7.2380311]
[1746693572151,13.775688,152.96,152.91,7.2380311]
[1746693572356,13.775688,152.96,152.92,15.84]
[1746693573367,7.2380311,152.95,152.92,15.84]
[1746693574375,6.53851183,152.94,152.92,15.84]
[1746693575973,6.53808434,152.95,152.92,15.84]
[1746693576874,6.53808434,152.95,152.92,23.0780311]
[1746693577063,6.53808434,152.95,152.92,15.84]
[1746693577474,6.53808434,152.95,152.92,23.0780311]
[1746693577653,6.53637492,152.99,152.93,7.2380311]
[1746693577852,7.2380311,152.98,152.93,7.2380311]
[1746693578782,6.53722952,152.97,152.93,7.2380311]
[1746693580876,6.53722952,152.97,152.94,7.2380311]
[1746693581078,6.53722952,152.97,152.94,10.51521282]
[1746693582153,6.53722952,152.97,152.94,3.27718172]
[1746693582358,7.2380311,152.97,152.93,25.88767996]
[1746693583459,7.2380311,152.97,152.93,7.2380311]
[1746693584388,6.5376569,152.96,152.92,105.8780311]
[1746693584559,6.5376569,152.96,152.92,23.0780311]
[1746693585584,6.5376569,152.96,152.92,26.35946401]
[1746693587464,22.87731223,152.99,152.92,26.35946401]
[1746693587670,7.2380311,152.97,152.92,26.35946401]
[1746693588278,7.2380311,152.96,152.92,19.12143291]
[1746693588782,7.2380311,152.97,152.92,26.35946401]
[1746693588990,22.87731223,152.99,152.92,26.35946401]
[1746693589170,7.2380311,152.97,152.93,7.2380311]
[1746693589370,6.53722952,152.97,152.93,7.2380311]
[1746693591191,13.77526062,152.97,152.93,7.2380311]
[1746693591499,13.77526062,152.97,152.92,26.35946401]
[1746693593676,7.2380311,152.97,152.92,26.35946401]
[1746693594990,6.5376569,152.96,152.92,19.12143291]
[1746693595187,6.5376569,152.96,152.92,26.35946401]
[1746693596265,22.87731223,152.99,152.92,26.35946401]
[1746693596589,7.2380311,152.97,152.92,26.35946401]
[1746693597687,6.5376569,152.96,152.92,26.35946401]
[1746693605570,6.5376569,152.96,152.92,19.12143291]
[1746693606996,6.5376569,152.96,152.92,26.35946401]
[1746693607201,6.5376569,152.96,152.93,25.88767996]
[1746693607579,6.53680219,152.98,152.93,25.88767996]
[1746693608082,6.53680219,152.98,152.94,7.2380311]
[1746693608398,6.53680219,152.98,152.93,7.2380311]
[1746693608588,7.2380311,152.97,152.92,19.12143291]
[1746693608902,7.2380311,152.96,152.92,19.12143291]
[1746693609703,7.2380311,152.93,152.87,140.812]
[1746693609889,7.2380311,152.92,152.89,15.82]
[1746693610594,7.2380311,152.93,152.89,15.82]
[1746693611204,7.2380311,152.93,152.89,23.0580311]
[1746693611704,6.53936698,152.92,152.89,26.35331466]
[1746693613174,6.53851183,152.94,152.9,7.2380311]
[1746693613793,6.53851183,152.94,152.9,11.2930451]
[1746693614002,6.5376569,152.96,152.91,11.2930451]
[1746693614197,6.5376569,152.96,152.92,11.2930451]
[1746693617403,27.63595981,152.98,152.93,11.2930451]
[1746693617609,11.2930451,152.98,152.93,11.2930451]
[1746693617792,11.2930451,152.98,152.94,15.82]
[1746693617994,6.53637492,152.99,152.94,15.82]
[1746693618202,11.2930451,152.98,152.94,15.82]
[1746693618513,6.53637492,152.99,152.94,27.1130451]
[1746693618805,17.82942002,152.99,152.94,27.1130451]
[1746693620105,6.53637492,152.99,152.95,11.2930451]
[1746693620311,7.03598152,153.0,152.96,11.2930451]
[1746693620686,18.32902662,153.0,152.95,29.94269396]
[1746693620896,11.2930451,152.99,152.95,29.94269396]
[1746693621087,7.03598152,153.0,152.95,18.64964886]
[1746693621295,7.03598152,153.0,152.95,29.94269396]
[1746693621503,18.32902662,153.0,152.95,29.94269396]
[1746693622913,7.03598152,153.0,152.95,29.94269396]
[1746693623210,11.2930451,152.99,152.95,29.94269396]
[1746693623909,7.03598152,153.0,152.95,29.94269396]
[1746693624102,11.2930451,152.99,152.95,29.94269396]
[1746693624411,17.82982497,152.99,152.95,29.94269396]
[1746693624600,11.2930451,152.98,152.94,98.62]
[1746693624904,11.2930451,152.96,152.94,98.62]
[1746693625105,11.2930451,152.96,152.94,15.82]
[1746693626412,17.83036802,152.97,152.94,15.82]
[1746693628186,6.53732292,152.97,152.94,15.82]
[1746693628386,17.83036802,152.97,152.94,15.82]
[1746693628611,22.87731223,152.99,152.94,15.82]
[1746693628815,6.53637492,152.99,152.94,15.82]
[1746693629013,11.2930451,152.98,152.94,15.82]
[1746693630005,7.03606116,153.0,152.95,29.94269396]
[1746693630191,18.32910626,153.0,152.95,29.94269396]
[1746693630602,0.5,153.0,152.95,29.94269396]
[1746693630915,18.3291726,153.0,152.95,29.94269396]
[1746693631233,18.3291726,153.0,152.95,18.64964886]
[1746693631423,18.3291726,153.0,152.95,29.94269396]
[1746693632911,7.0361275,153.0,152.95,29.94269396]
[1746693633116,18.3291726,153.0,152.95,29.94269396]
[1746693634799,7.0361275,153.0,152.95,29.94269396]
[1746693635120,18.3291726,153.0,152.95,29.94269396]
[1746693635319,11.2930451,152.99,152.95,29.94269396]
[1746693635524,7.0361275,153.0,152.94,159.9130451]
[1746693635706,11.2930451,152.99,152.94,159.9130451]
[1746693636217,11.2930451,152.99,152.94,77.1130451]
[1746693636404,7.0361275,153.0,152.94,77.1130451]
[1746693636995,11.2930451,152.99,152.94,77.1130451]
[1746693637800,6.53668479,152.99,152.94,77.1130451]
[1746693638118,6.53668479,152.99,152.95,11.2930451]
[1746693638321,0.5,153.0,152.98,11.2930451]
[1746693638624,0.5,153.0,152.99,15.84]
[1746693639616,7.03594771,153.0,152.99,15.84]
[1746693640815,18.32899281,153.0,152.99,15.84]
[1746693641527,7.03594771,153.0,152.99,15.84]
[1746693641731,18.32899281,153.0,152.99,15.84]
[1746693642930,7.03594771,153.0,152.99,15.84]
[1746693644421,0.5,153.0,152.99,15.84]
[1746693647027,18.32899281,153.0,152.99,15.84]
[1746693648031,18.32899281,153.0,152.99,15.84]
[1746693649930,7.03594771,153.0,152.99,15.84]
[1746693650132,18.32899281,153.0,152.99,15.84]
[1746693651510,7.03594771,153.0,152.99,15.84]
[1746693661123,18.32899281,153.0,152.96,26.0]
[1746693661420,11.2930451,152.99,152.96,16.08]
[1746693662429,18.32899281,153.0,152.96,16.08]
[1746693662629,11.2930451,152.99,152.96,16.08]
[1746693662842,7.03594771,153.0,152.96,16.08]
[1746693663138,11.2930451,152.99,152.96,16.08]
[1746693663853,7.03594771,153.0,152.96,16.08]
[1746693664058,11.2930451,152.99,152.96,16.08]
[1746693664759,6.53680219,152.98,152.96,16.08]
[1746693664957,17.82984729,152.98,152.96,16.08]
[1746693665758,6.53680219,152.98,152.96,16.08]
[1746693667043,7.03610558,153.0,152.97,11.2930451]
[1746693667237,0.5,153.0,152.99,11.2930451]
[1746693669355,0.5,153.0,152.97,18.64964886]
[1746693669553,11.2930451,152.99,152.96,16.08]
[1746693670938,6.53680219,152.98,152.96,16.08]
[1746693672059,17.82984729,152.98,152.96,16.08]
[1746693673767,11.2930451,152.97,152.96,16.08]
[1746693674736,11.2930451,152.97,152.92,53.3730451]
[1746693674964,11.2930451,152.96,152.92,53.3730451]
[1746693675469,11.2930451,152.96,152.92,42.08]
[1746693675648,17.83081614,152.96,152.92,53.3730451]
[1746693676149,4.8979418,152.95,152.92,53.3730451]
[1746693677048,4.8979418,152.94,152.92,53.3730451]
[1746693677232,4.8979418,152.94,152.93,11.2930451]
[1746693678170,4.8979418,152.94,152.92,53.3730451]
[1746693679245,4.8979418,152.93,152.92,53.3730451]
[1746693681347,4.8979418,152.93,152.92,59.91241208]
[1746693682263,4.8979418,152.93,152.92,78.56206094]
[1746693683560,4.8979418,152.93,152.92,128.56206094]
[1746693684267,4.8979418,152.93,152.92,211.36206094]
[1746693684965,4.8979418,152.93,152.92,185.36206094]
[1746693685772,7.03606964,153.0,152.97,26.0]
[1746693685953,7.03606964,153.0,152.98,27.3730451]
[1746693686942,0.5,153.0,152.98,27.3730451]
[1746693687671,0.5,153.0,152.99,11.2930451]
[1746693689783,7.03594771,153.0,152.99,11.2930451]
[1746693690073,0.5,153.0,152.99,11.2930451]
[1746693693671,7.03609575,153.0,152.98,16.08]
[1746693698451,4.89258707,152.99,152.98,16.08]
[1746693700571,11.42896199,152.99,152.98,16.08]
[1746693704179,4.89258707,152.99,152.98,27.3730451]
[1746693704559,11.42896199,152.99,152.98,16.08]
[1746693707487,22.72200709,152.99,152.98,16.08]
[1746693707863,11.42896199,152.99,152.98,16.08]
[1746693710289,11.42896199,152.99,152.98,27.3730451]
[1746693710873,11.42896199,152.99,152.98,16.08]
[1746693714206,4.89258707,152.99,152.98,16.08]
[1746693715094,11.42896199,152.99,152.98,16.08]
[1746693719499,11.42896199,152.99,152.97,26.0]
[1746693719981,4.89258707,152.98,152.97,26.0]
[1746693721268,11.42938926,152.98,152.96,15.84]
[1746693722188,39.06443985,152.98,152.93,26.0]
[1746693722399,11.2930451,152.94,152.89,248.13528356]
[1746693722581,11.2930451,152.92,152.89,248.13528356]
[1746693723077,4.89258707,152.91,152.89,248.13528356]
[1746693724405,4.89258707,152.9,152.89,259.42832866]
[1746693724804,4.89258707,152.9,152.89,284.61862766]
[1746693725385,143.13734724,152.97,152.9,18.64964886]
[1746693725589,11.2930451,152.98,152.89,288.0285658]
[1746693725590,17.83001031,152.98,152.94,11.2930451]
[1746693726003,6.53696521,152.98,152.94,11.2930451]
[1746693728096,6.53696521,152.98,152.95,11.2930451]
[1746693728486,6.53696521,152.98,152.94,11.2930451]
[1746693729609,6.53696521,152.98,152.95,11.2930451]
[1746693730194,6.53696521,152.98,152.94,11.2930451]
[1746693732404,17.83001031,152.98,152.94,11.2930451]
[1746693733487,6.53696521,152.98,152.94,11.2930451]
[1746693736517,17.83001031,152.98,152.94,11.2930451]
[1746693738216,17.83001031,152.98,152.93,15.84]
[1746693738413,11.2930451,152.97,152.93,27.1330451]
[1746693739611,6.5376569,152.96,152.93,27.1330451]
[1746693741533,17.82984729,152.98,152.93,15.84]
[1746693741712,6.53680219,152.98,152.93,15.84]
[1746693742039,11.2930451,152.97,152.93,15.84]
[1746693742400,6.53680219,152.98,152.94,11.2930451]
[1746693742605,6.53680219,152.98,152.95,11.2930451]
[1746693743530,6.53680219,152.98,152.94,11.2930451]
[1746693745725,6.53680219,152.98,152.93,15.84]
[1746693745928,17.82984729,152.98,152.93,15.84]
[1746693746229,17.82984729,152.98,152.94,11.2930451]
[1746693750326,6.53680219,152.98,152.95,11.2930451]
[1746693752436,6.53647702,152.99,152.96,11.2930451]
[1746693752936,18.32915272,153.0,152.96,11.2930451]
[1746693753327,18.32915272,153.0,152.94,6.53846954]
[1746693753514,18.32915272,153.0,152.95,11.2930451]
[1746693753918,11.2930451,152.99,152.94,11.2930451]
[1746693754220,11.2930451,152.98,152.93,15.84]
[1746693754531,6.53722952,152.97,152.94,11.2930451]
[1746693755540,6.53722952,152.97,152.95,11.2930451]
[1746693755946,6.53680219,152.98,152.95,11.2930451]
[1746693756435,6.53680219,152.98,152.94,11.2930451]
[1746693756935,6.53680219,152.98,152.95,11.2930451]
[1746693757831,6.53680219,152.98,152.95,7.22667688]
[1746693759053,6.53638291,152.99,152.97,7.22667688]
[1746693759343,0.5,153.0,152.98,7.22667688]
[1746693759512,0.5,153.0,152.99,7.22667688]
[1746693759720,0.5,153.0,152.98,15.84]
[1746693759935,7.03610518,153.0,152.98,15.84]
[1746693761023,14.26278206,153.0,152.98,15.84]
[1746693765043,30.60265134,153.0,152.96,7.22667688]
[1746693765547,30.60265134,153.0,152.95,23.06667688]
[1746693766951,30.60265134,153.0,152.95,15.84]
[1746693767447,30.60265134,153.0,152.95,23.06667688]
[1746693769430,23.37597446,153.0,152.96,7.22667688]
[1746693775156,23.37597446,153.0,152.97,7.22667688]
[1746693775463,7.03610518,153.0,152.97,7.22667688]
[1746693776448,7.03610518,153.0,152.95,15.84]
[1746693776644,7.03610518,153.0,152.97,7.22667688]
[1746693776850,7.03610518,153.0,152.95,15.84]
[1746693777047,7.03610518,153.0,152.97,7.22667688]
[1746693783265,7.03610518,153.0,152.98,7.22667688]
[1746693787170,0.5,153.0,152.99,7.22667688]
[1746693787362,7.03594771,153.0,152.99,7.22667688]
[1746693788879,0.5,153.0,152.99,7.22667688]
[1746693789379,7.03594771,153.0,152.99,7.22667688]
[1746693790480,7.03594771,153.0,152.96,18.64964886]
[1746693790977,7.03594771,153.0,152.99,7.22667688]
[1746693793580,7.03594771,153.0,152.96,18.64964886]
[1746693793897,7.03594771,153.0,152.99,7.22667688]
[1746693795960,0.5,153.0,152.99,7.22667688]
[1746693796156,7.03594771,153.0,152.99,7.22667688]
[1746693796781,0.5,153.0,152.99,7.22667688]
[1746693800705,0.5,153.0,152.98,15.82]
[1746693801001,0.5,153.0,152.99,7.22667688]
[1746693805885,0.5,153.0,152.98,67.3247]
[1746693806193,0.5,153.0,152.99,7.22667688]
[1746693810504,0.5,153.0,152.98,73.86144072]
[1746693810703,0.5,153.0,152.99,7.22667688]
[1746693811202,0.5,153.0,152.99,13.7630518]
[1746693812213,0.5,153.0,152.99,7.22667688]
[1746693815499,0.5,153.0,152.99,13.7630518]
[1746693815809,0.5,153.0,152.99,7.22667688]
[1746693816215,0.5,153.0,152.99,96.5630518]
[1746693817016,0.5,153.0,152.99,90.02667688]
[1746693821711,0.5,153.0,152.99,7.22667688]
[1746693822822,7.03594771,153.0,152.98,23.04667688]
[1746693823416,7.03594771,153.0,152.99,7.22667688]
[1746693823716,7.03594771,153.0,152.98,15.82]
[1746693824012,7.03594771,153.0,152.99,7.22667688]
[1746693828722,0.5,153.0,152.99,7.22667688]
[1746693831111,7.03594771,153.0,152.99,7.22667688]
[1746693831619,7.03594771,153.0,152.97,41.8]
[1746693831916,7.03594771,153.0,152.98,7.22667688]
[1746693832091,7.03594771,153.0,152.97,49.02667688]
[1746693833316,7.03594771,153.0,152.97,41.8]
[1746693833517,7.03594771,153.0,152.97,49.02667688]
[1746693833713,7.03594771,153.0,152.97,15.8]
[1746693834215,7.03594771,153.0,152.97,23.02667688]
[1746693836716,7.03594771,153.0,152.97,7.22667688]
[1746693842722,7.03594771,153.0,152.96,15.8]
[1746693842906,7.03594771,153.0,152.98,7.22667688]
[1746693844127,7.03594771,153.0,152.96,15.8]
[1746693844331,7.03594771,153.0,152.98,7.22667688]
[1746693846207,7.03594771,153.0,152.96,15.8]
[1746693846740,7.03594771,153.0,152.97,7.22667688]
[1746693847240,7.03594771,153.0,152.96,15.8]
[1746693847534,7.03594771,153.0,152.96,23.02667688]
[1746693847737,7.03594771,153.0,152.97,7.22667688]
[1746693848731,7.03594771,153.0,152.96,23.02667688]
[1746693849441,7.03594771,153.0,152.97,7.22667688]
[1746693850239,7.03594771,153.0,152.98,7.22667688]
[1746693851114,7.03594771,153.0,152.97,7.22667688]
[1746693851321,23.37581699,153.0,152.96,23.02667688]
[1746693851620,23.37581699,153.0,152.96,15.8]
[1746693851824,23.37581699,153.0,152.96,23.02667688]
[1746693852219,23.37581699,153.0,152.96,15.8]
[1746693852420,23.37581699,153.0,152.96,23.02667688]
[1746693853140,30.60249387,153.0,152.96,15.8]
[1746693853344,23.37581699,153.0,152.98,7.22667688]
[1746693853843,7.03594771,153.0,152.98,7.22667688]
[1746693854051,7.03594771,153.0,152.97,7.22667688]
[1746693854352,7.03594771,153.0,152.98,7.22667688]
[1746693855618,7.03594771,153.0,152.99,7.22667688]
[1746693856851,0.5,153.0,152.99,7.22667688]
[1746693859823,0.5,153.0,152.96,22.33763585]
[1746693860016,0.5,153.0,152.99,7.22667688]
[1746693873034,7.03594771,153.0,152.99,7.22667688]
[1746693874358,7.03594771,153.0,152.99,23.00667688]
[1746693876830,0.5,153.0,152.99,23.00667688]
[1746693880035,0.5,153.0,152.99,41.65632574]
[1746693882260,0.5,153.0,152.99,124.45632574]
[1746693886758,0.5,153.0,152.99,130.99270066]
[1746693890755,0.5,153.0,152.99,123.76602378]
[1746693890961,0.5,153.0,152.99,130.99270066]
[1746693891863,0.5,153.0,152.99,124.45632574]
[1746693892761,0.5,153.0,152.99,130.99270066]
[1746693893981,0.5,153.0,152.99,124.45632574]
[1746693898660,0.5,153.0,152.99,117.22964886]
[1746693898952,0.5,153.0,152.99,124.45632574]
[1746693901661,0.5,153.0,152.99,117.22964886]
[1746693901848,0.5,153.0,152.99,124.45632574]
[1746693905542,0.5,153.0,152.99,130.99270066]
[1746693910774,0.5,153.0,152.99,130.99270066]
[1746693911678,0.5,153.0,152.99,124.45632574]
[1746693911850,0.5,153.0,152.99,105.80667688]
[1746693912172,7.03594771,153.0,152.99,15.78]
[1746693912773,0.5,153.0,152.99,15.78]
[1746693913977,0.5,153.0,152.99,23.00667688]
[1746693914868,0.5,153.0,152.99,15.78]
[1746693915071,0.5,153.0,152.99,23.00667688]
[1746693917275,7.03594771,153.0,152.99,15.78]
[1746693917463,7.03594771,153.0,152.99,23.00667688]
[1746693921071,7.03594771,153.0,152.99,15.78]
[1746693929474,7.03594771,153.0,152.96,26.0]
[1746693929667,7.03594771,153.0,152.96,33.22667688]
[1746693929862,30.60249387,153.0,152.95,15.78]
[1746693930079,30.60249387,153.0,152.95,23.00667688]
[1746693930290,7.22667688,152.99,152.95,15.78]
[1746693930474,30.60249387,153.0,152.95,23.00667688]
[1746693930672,7.22667688,152.99,152.95,15.78]
[1746693930891,6.53680219,152.98,152.95,23.00667688]
[1746693931090,6.53680219,152.98,152.96,7.22667688]
[1746693932994,6.53637492,152.99,152.96,7.22667688]
[1746693935604,6.53637492,152.99,152.95,15.78]
[1746693935778,7.22667688,152.97,152.91,260.56]
[1746693935969,7.22667688,152.97,152.93,7.22667688]
[1746693936175,7.22667688,152.98,152.94,7.22667688]
[1746693936582,7.22667688,152.98,152.93,7.22667688]
[1746693938192,6.53722952,152.97,152.94,7.22667688]
[1746693938983,6.53722952,152.97,152.92,26.0]
[1746693939184,6.53722952,152.97,152.94,7.22667688]
[1746693942092,13.76347907,152.98,152.94,7.22667688]
[1746693942282,13.76347907,152.98,152.93,7.22667688]
[1746693943580,13.76347907,152.98,152.94,7.22667688]
[1746693946516,13.76347907,152.98,152.92,26.0]
[1746693946692,13.76347907,152.98,152.94,7.22667688]
[1746693949410,6.53680219,152.98,152.94,7.22667688]
[1746693949883,13.76347907,152.98,152.94,7.22667688]
[1746693950601,6.53680219,152.98,152.94,7.22667688]
[1746693950802,0.5,153.0,152.95,7.22667688]
[1746693950992,7.03611662,153.0,152.98,7.22667688]
[1746693951187,7.03611662,153.0,152.99,7.22667688]
[1746693951188,0.5,153.0,152.99,7.22667688]
[1746693953506,0.5,153.0,152.99,13.7630518]
[1746693955004,0.5,153.0,152.99,7.22667688]
[1746693958491,0.5,153.0,152.99,13.7630518]
[1746693958905,0.5,153.0,152.99,7.22667688]
[1746693960705,7.03594771,153.0,152.99,7.22667688]
[1746693961206,0.5,153.0,152.99,7.22667688]
[1746693964312,0.5,153.0,152.97,131.11716671]
[1746693964491,0.5,153.0,152.99,5.22667688]
[1746693964686,0.5,153.0,152.99,31.22667688]
[1746693965316,0.5,153.0,152.99,26.0]
[1746693965516,0.8106462,153.02,153.01,26.0]
[1746693965694,0.8106462,153.02,153.01,33.22667688]
[1746693971020,0.8106462,153.02,153.01,108.41184629]
[1746693971191,0.8106462,153.02,153.01,101.87632574]
[1746693972216,0.8106462,153.02,153.01,108.41184629]
[1746693973296,0.8106462,153.02,153.01,83.22667688]
[1746693973712,0.8106462,153.02,153.01,108.41184629]
[1746693975228,0.8106462,153.02,153.01,191.21184629]
[1746693976628,0.8106462,153.02,153.01,184.67632574]
[1746693977732,0.8106462,153.02,153.01,177.44964886]
[1746693981129,0.8106462,153.02,153.01,166.02667688]
[1746693981312,0.8106462,153.02,153.01,83.22667688]
[1746693984503,0.8106462,153.02,153.01,108.41184629]
[1746693985941,0.8106462,153.02,153.01,94.64964886]
[1746693986109,0.8106462,153.02,153.01,110.40964886]
[1746693986305,0.8106462,153.02,153.01,117.63632574]
[1746693988919,0.8106462,153.02,153.01,124.17184629]
[1746693990230,0.8106462,153.02,153.01,206.97184629]
[1746693991925,13.70847688,153.11,153.01,206.97184629]
[1746693991926,1.5935,153.14,153.06,68.64964886]
[1746693992125,1.5935,153.14,153.1,7.22667688]
[1746693992318,6.530399,153.13,153.1,7.22667688]
[1746693992716,6.530399,153.13,153.09,7.22667688]
[1746693993535,48.85639651,153.13,153.09,7.22667688]
[1746693993836,56.08307339,153.13,153.08,7.22667688]
[1746693994208,136.6,153.17,153.07,15.76]
[1746693994209,6.5286936,153.17,153.09,7.22667688]
[1746693994408,39.14414281,153.21,153.09,7.22667688]